fUST/lending_fUST_20251210
["ID","MTS","AMOUNT","RATE_DAILY","PERIOD"]
[398032901,1765317038955,-151.0,9.47e-05,2]
[398032903,1765317038965,-500.0,9.47e-05,2]
[398032905,1765317038975,-500.0,9.47e-05,2]
[398032906,1765317038985,-500.0,9.47e-05,2]
[398032908,1765317038994,-500.0,9.47e-05,2]
[398032909,1765317039003,-500.0,9.47e-05,2]
[398032911,1765317039013,-500.0,9.47e-05,2]
[398032913,1765317039023,-151.0,9.47e-05,2]
[398032915,1765317039034,-151.0,9.47e-05,2]
[398032917,1765317039044,-151.0,9.47e-05,2]
[398032918,1765317039054,-500.0,9.47e-05,2]
[398032920,1765317039064,-387.45740478,9.47e-05,2]
[398032922,1765317039073,-500.0,9.47e-05,2]
[398032924,1765317039084,-500.0,9.47e-05,2]
[398032925,1765317039094,-500.0,9.47e-05,2]
[398032927,1765317039105,-500.0,9.47e-05,2]
[398032928,1765317039115,-500.0,9.47e-05,2]
[398032929,1765317039124,-523.96695544,9.47e-05,2]
[398032930,1765317039134,-500.0,9.47e-05,2]
[398032931,1765317039144,-500.0,9.47e-05,2]
[398032932,1765317039153,-500.0,9.47e-05,2]
[398032933,1765317039163,-170.90933335,9.47e-05,2]
[398032934,1765317039174,-500.0,9.471e-05,2]
[398032935,1765317039187,-604.1677629,9.471e-05,2]
[398032936,1765317039197,-235.2898755,9.471e-05,2]
[398032937,1765317039207,-28503.5561055,9.471e-05,2]
[398032938,1765317039217,-151.0,9.471e-05,2]
[398032939,1765317039226,-151.0,9.471e-05,2]
[398032940,1765317039237,-151.0,9.471e-05,2]
[398032941,1765317039247,-151.0,9.471e-05,2]
[398032942,1765317039260,-151.0,9.471e-05,2]
[398032943,1765317039270,-151.0,9.471e-05,2]
[398032944,1765317039280,-151.0,9.471e-05,2]
[398032945,1765317039289,-151.0,9.471e-05,2]
[398032946,1765317039298,-1065.9380299,9.471e-05,2]
[398032947,1765317039308,-151.0,9.471e-05,2]
[398032948,1765317039317,-151.0,9.471e-05,2]
[398032949,1765317039327,-151.0,9.471e-05,2]
[398032950,1765317039336,-151.0,9.471e-05,2]
[398032951,1765317039346,-151.0,9.471e-05,2]
[398032952,1765317039356,-151.0,9.471e-05,2]
[398032953,1765317039366,-334.0,9.492e-05,2]
[398032954,1765317039375,-334.0,9.492e-05,2]
[398032955,1765317039386,-334.0,9.492e-05,2]
[398032956,1765317039395,-334.0,9.492e-05,2]
[398032957,1765317039405,-334.0,9.492e-05,2]
[398032958,1765317039415,-334.0,9.492e-05,2]
[398032959,1765317039423,-334.0,9.492e-05,2]
[398032960,1765317039433,-334.0,9.492e-05,2]
[398032961,1765317039443,-334.0,9.492e-05,2]
[398032962,1765317039452,-1925.76379693,9.512e-05,2]
[398032963,1765317039462,-500.0,9.566e-05,2]
[398032964,1765317039471,-376.3237561,9.567e-05,2]
[398032965,1765317039480,-677.38276098,9.567e-05,2]
[398032966,1765317039491,-1204.23601952,9.567e-05,2]
[398032967,1765317039501,-151.0,9.589e-05,2]
[398032968,1765317039511,-151.0,9.589e-05,2]
[398032969,1765317039520,-151.0,9.589e-05,2]
[398032970,1765317039529,-262.138631,9.589e-05,2]
[398032971,1765317039539,-151.0,9.589e-05,2]
[398032972,1765317039548,-151.0,9.589e-05,2]
[398032973,1765317039558,-242.115099,9.589e-05,2]
[398032974,1765317039567,-1000.0,9.589e-05,2]
[398032975,1765317039576,-1000.0,9.589e-05,2]
[398032976,1765317039585,-1000.0,9.589e-05,2]
[398032977,1765317039595,-1000.0,9.589e-05,2]
[398032978,1765317039605,-783.5897,9.589e-05,2]
[398032979,1765317039614,-956.7179,9.589e-05,2]
[398032980,1765317039623,-204.0,9.625e-05,2]
[398032981,1765317039632,-2351.0,9.625e-05,2]
[398032982,1765317039642,-587.0,9.625e-05,2]
[398032983,1765317039651,-160.62359743,9.667e-05,2]
[398032984,1765317039660,-289.12247537,9.667e-05,2]
[398032985,1765317039669,-513.99551177,9.667e-05,2]
[398032986,1765317039678,-297.15518415,9.671e-05,2]
[398032987,1765317039688,-1925.76379693,9.742e-05,2]
[398032988,1765317039698,-500.0,9.745e-05,2]
[398032989,1765317039708,-151.0,9.77e-05,2]
[398032990,1765317039717,-151.0,9.77e-05,2]
[398032991,1765317039727,-151.0,9.77e-05,2]
[398032992,1765317039736,-500.0,9.77e-05,2]
[398032993,1765317039746,-151.0,9.77e-05,2]
[398032994,1765317039755,-151.0,9.77e-05,2]
[398032995,1765317039764,-956.7179,9.781e-05,2]
[398032996,1765317039774,-720.0,9.816e-05,2]
[398032997,1765317039783,-343.07935241,9.932e-05,2]
[398032998,1765317039792,-477.42554292,9.932e-05,2]
[398032999,1765317039802,-859.36597726,9.932e-05,2]
[398033000,1765317039811,-166.0,9.942e-05,2]
[398033001,1765317039820,-213.80738387,9.942e-05,2]
[398033002,1765317039829,-166.0,9.942e-05,2]
[398033003,1765317039839,-166.0,9.942e-05,2]
[398033004,1765317039848,-152.0,9.942e-05,2]
[398033005,1765317039858,-162.0,9.942e-05,2]
[398033006,1765317039868,-166.0,9.942e-05,2]
[398033007,1765317039879,-166.0,9.942e-05,2]
[398033008,1765317039890,-152.0,9.942e-05,2]
[398033009,1765317039900,-162.0,9.942e-05,2]
[398033010,1765317039909,-166.0,9.942e-05,2]
[398033011,1765317039919,-166.0,9.942e-05,2]
[398033012,1765317039929,-162.0,9.942e-05,2]
[398033013,1765317039939,-152.0,9.942e-05,2]
[398033014,1765317039949,-166.0,9.942e-05,2]
[398033015,1765317039959,-162.0,9.942e-05,2]
[398033016,1765317039969,-152.0,9.942e-05,2]
[398033017,1765317039978,-172.0,9.942e-05,2]
[398033018,1765317039992,-166.0,9.942e-05,2]
[398033019,1765317040001,-162.0,9.942e-05,2]
[398033020,1765317040012,-152.0,9.942e-05,2]
[398033021,1765317040021,-166.0,9.942e-05,2]
[398033022,1765317040034,-223.16077726,9.942e-05,2]
[398033024,1765317040043,-152.0,9.942e-05,2]
[398033025,1765317040053,-166.0,9.942e-05,2]
[398033026,1765317040063,-152.0,9.942e-05,2]
[398033027,1765317040072,-152.0,9.942e-05,2]
[398033028,1765317040082,-163.93476159,9.942e-05,2]
[398033029,1765317040091,-152.0,9.942e-05,2]
[398033030,1765317040101,-334.0,9.942e-05,2]
[398033031,1765317040111,-152.0,9.942e-05,2]
[398033033,1765317040120,-334.0,9.942e-05,2]
[398033034,1765317040130,-152.0,9.942e-05,2]
[398033035,1765317040141,-334.0,9.942e-05,2]
[398033036,1765317040151,-152.0,9.942e-05,2]
[398033037,1765317040160,-334.0,9.942e-05,2]
[398033038,1765317040171,-152.0,9.942e-05,2]
[398033039,1765317040184,-334.0,9.942e-05,2]
[398033040,1765317040195,-334.0,9.942e-05,2]
[398033041,1765317040204,-152.0,9.942e-05,2]
[398033043,1765317040214,-334.0,9.942e-05,2]
[398033044,1765317040224,-279.78499744,9.942e-05,2]
[398033045,1765317040234,-334.0,9.942e-05,2]
[398033046,1765317040247,-429.0867238,9.942e-05,2]
[398033047,1765317040259,-334.0,9.942e-05,2]
[398033048,1765317040269,-334.0,9.942e-05,2]
[398033049,1765317040279,-334.0,9.942e-05,2]
[398033050,1765317040289,-334.0,9.942e-05,2]
[398033051,1765317040299,-334.0,9.942e-05,2]
[398033052,1765317040308,-347.30356795,9.947e-05,2]
[398033053,1765317040318,-1925.76379693,9.972e-05,2]
[398033055,1765317040328,-500.0,9.999e-05,2]
[398033056,1765317040337,-2000.0,9.999e-05,2]
[398033057,1765317040347,-572.47094313,9.999e-05,2]
[398033058,1765317040357,-10000.0,0.0001,2]
[398033059,1765317040367,-156.587,0.0001,2]
[398033060,1765317040378,-151.0,0.0001,2]
[398033062,1765317040388,-500.0,0.00010019,2]
[398033064,1765317040398,-956.7179,0.00010068,2]
[398033065,1765317040407,-1526.23397561,0.00010089,2]
[398033066,1765317040417,-500.0,0.00010157,2]
[398033067,1765317040426,-1925.76379693,0.00010202,2]
[398033068,1765317040436,-170.14,0.00010268,2]
[398033069,1765317040446,-2084.38225408,0.00010286,2]
[398033070,1765317040455,-500.0,0.00010293,2]
[398033071,1765317040465,-236.61727461,0.00010336,2]
[398033072,1765317040475,-397.5795005,0.00010411,2]
[398033073,1765317040488,-909.95713644,0.0001043,2]
[398033074,1765317040499,-1925.76379693,0.00010432,2]
[398033075,1765317040509,-500.0,0.00010495,2]
[398033076,1765317040519,-500.0,0.00010495,2]
[398033077,1765317040529,-500.0,0.00010495,2]
[398033078,1765317040538,-546.0,0.00010495,2]
[398033079,1765317040548,-500.0,0.00010495,2]
[398033080,1765317040558,-151.0,0.00010495,2]
[398033081,1765317040568,-151.0,0.00010495,2]
[398033082,1765317040579,-151.0,0.00010495,2]
[398033083,1765317040588,-500.0,0.00010495,2]
[398033084,1765317040599,-151.0,0.00010495,2]
[398033085,1765317040609,-500.0,0.00010495,2]
[398033087,1765317040618,-151.0,0.00010495,2]
[398033089,1765317040627,-151.0,0.00010495,2]
[398033090,1765317040637,-500.0,0.00010495,2]
[398033092,1765317040646,-151.0,0.00010495,2]
[398033094,1765317040655,-151.0,0.00010495,2]
[398033096,1765317040664,-151.0,0.00010495,2]
[398033097,1765317040674,-500.0,0.00010495,2]
[398033099,1765317040683,-151.0,0.00010495,2]
[398033100,1765317040692,-500.0,0.00010495,2]
[398033101,1765317040702,-500.0,0.00010495,2]
[398033102,1765317040711,-7693.69868049,0.00010532,2]
[398033103,1765317040720,-170.15,0.00010542,2]
[398033104,1765317040730,-151.0,0.00010548,2]
[398033105,1765317040742,-604.1677629,0.00010554,2]
[398033106,1765317040751,-500.0,0.00010567,2]
[398033107,1765317040760,-2584.0,0.00010588,2]
[398033108,1765317040774,-823.0,0.00010588,2]
[398033109,1765317040784,-500.0,0.00010624,2]
[398033110,1765317040793,-300.12527766,0.00010632,2]
[398033111,1765317040808,-201.49285529,0.00010632,2]
[398033112,1765317040818,-500.0,0.00010632,2]
[398033113,1765317040827,-500.0,0.00010632,2]
[398033114,1765317040837,-546.0,0.00010632,2]
[398033115,1765317040846,-500.0,0.00010632,2]
[398033116,1765317040855,-151.0,0.00010632,2]
[398033117,1765317040865,-151.0,0.00010632,2]
[398033118,1765317040874,-151.19917669,0.00010632,2]
[398033119,1765317040883,-500.0,0.00010632,2]
[398033120,1765317040892,-151.0,0.00010632,2]
[398033121,1765317040902,-500.0,0.00010632,2]
[398033122,1765317040912,-224.70470214,0.00010632,2]
[398033124,1765317040921,-151.0,0.00010632,2]
[398033125,1765317040931,-500.0,0.00010632,2]
[398033126,1765317040940,-151.0,0.00010632,2]
[398033127,1765317040950,-151.0,0.00010632,2]
[398033128,1765317040959,-151.0,0.00010632,2]
[398033129,1765317040969,-500.0,0.00010632,2]
[398033130,1765317040978,-500.0,0.00010632,2]
[398033131,1765317040992,-500.0,0.00010632,2]
[398033132,1765317041001,-2808.22124729,0.00010642,2]
[398033133,1765317041010,-1925.76379693,0.00010662,2]
[398033134,1765317041020,-170.96367312,0.00010746,2]
[398033135,1765317041030,-500.0,0.00010769,2]
[398033136,1765317041039,-546.0,0.00010769,2]
[398033137,1765317041049,-305.15246767,0.00010769,2]
[398033138,1765317041058,-500.0,0.00010769,2]
[398033139,1765317041067,-203.20783583,0.00010769,2]
[398033140,1765317041077,-199.92108953,0.00010769,2]
[398033141,1765317041086,-151.45710674,0.00010769,2]
[398033142,1765317041095,-151.0,0.00010769,2]
[398033143,1765317041105,-500.0,0.00010769,2]
[398033144,1765317041115,-151.0,0.00010769,2]
[398033145,1765317041125,-564.96815257,0.00010769,2]
[398033146,1765317041134,-151.0,0.00010769,2]
[398033147,1765317041143,-151.0,0.00010769,2]
[398033148,1765317041153,-151.0,0.00010769,2]
[398033149,1765317041163,-500.0,0.00010769,2]
[398033150,1765317041174,-500.0,0.00010769,2]
[398033151,1765317041186,-500.0,0.00010769,2]
[398033152,1765317041195,-864.0,0.00010798,2]
[398033153,1765317041204,-500.0,0.000108,2]
[398033154,1765317041215,-200.0,0.000108,3]
[398033155,1765317041224,-500.0,0.00010841,2]
[398033156,1765317041234,-500.0,0.00010847,2]
[398033157,1765317041244,-1065.9380299,0.00010855,2]
[398033158,1765317041253,-280.48377755,0.00010859,2]
[398033159,1765317041266,-333.0,0.00010859,2]
[398033160,1765317041275,-172.0,0.00010861,2]
[398033161,1765317041284,-334.0,0.00010861,2]
[398033162,1765317041294,-334.0,0.00010861,2]
[398033163,1765317041303,-334.0,0.00010861,2]
[398033164,1765317041312,-334.0,0.00010861,2]
[398033165,1765317041321,-479.2738987,0.00010861,2]
[398033166,1765317041331,-1927.68956073,0.00010892,2]
[398033167,1765317041341,-2000.0,0.000109,3]
[398033168,1765317041350,-500.0,0.00010906,2]
[398033169,1765317041360,-546.0,0.00010906,2]
[398033170,1765317041369,-500.0,0.00010906,2]
[398033171,1765317041378,-151.0,0.00010906,2]
[398033172,1765317041388,-500.0,0.00010906,2]
[398033173,1765317041397,-198.19237479,0.00010906,2]
[398033174,1765317041406,-151.0,0.00010906,2]
[398033175,1765317041417,-300.336891,0.00010906,2]
[398033176,1765317041426,-151.0,0.00010906,2]
[398033177,1765317041436,-500.0,0.00010906,2]
[398033178,1765317041446,-500.0,0.00010906,2]
[398033179,1765317041456,-500.0,0.00010906,2]
[398033180,1765317041466,-263.74,0.00010957,2]
[398033181,1765317041476,-999.0,0.00010959,2]
[398033182,1765317041487,-5633.0489309,0.00010959,2]
[398033183,1765317041497,-151.0,0.00010959,2]
[398033184,1765317041506,-151.0,0.00010959,2]
[398033185,1765317041516,-151.0,0.00010959,2]
[398033186,1765317041525,-151.0,0.00010959,2]
[398033187,1765317041535,-151.0,0.00010959,2]
[398033188,1765317041545,-151.0,0.00010959,2]
[398033189,1765317041555,-151.0,0.00010959,2]
[398033190,1765317041566,-151.0,0.00010959,2]
[398033191,1765317041575,-151.0,0.00010959,2]
[398033192,1765317041586,-220.765835,0.00010959,2]
[398033193,1765317041596,-500.0,0.00010959,2]
[398033194,1765317041605,-500.0,0.00010959,2]
[398033195,1765317041615,-500.0,0.00010959,2]
[398033196,1765317041625,-500.0,0.00010959,2]
[398033197,1765317041634,-500.0,0.00010959,2]
[398033198,1765317041643,-500.0,0.00010959,2]
[398033199,1765317041653,-500.0,0.00010959,2]
[398033200,1765317041663,-500.0,0.00010959,2]
[398033201,1765317041673,-500.0,0.00010959,2]
[398033202,1765317041683,-500.0,0.00010959,2]
[398033203,1765317041693,-500.0,0.00010959,2]
[398033204,1765317041702,-500.0,0.00010959,2]
[398033205,1765317041713,-500.0,0.00010959,2]
[398033206,1765317041722,-500.0,0.00010959,2]
[398033207,1765317041732,-500.0,0.00010959,2]
[398033208,1765317041745,-500.0,0.00010959,2]
[398033209,1765317041755,-500.0,0.00010959,2]
[398033210,1765317041764,-500.0,0.00010959,2]
[398033211,1765317041774,-500.0,0.00010959,2]
[398033212,1765317041783,-500.0,0.00010959,2]
[398033213,1765317041793,-500.0,0.00010959,2]
[398033214,1765317041802,-500.0,0.00010959,2]
[398033215,1765317041811,-500.0,0.00010959,2]
[398033216,1765317041821,-500.0,0.00010959,2]
[398033217,1765317041830,-500.0,0.00010959,2]
[398033218,1765317041839,-500.0,0.00010959,2]
[398033219,1765317041849,-500.0,0.00010959,2]
[398033220,1765317041858,-500.0,0.00010959,2]
[398033221,1765317041867,-500.0,0.00010959,2]
[398033222,1765317041877,-500.0,0.00010959,2]
[398033223,1765317041886,-500.0,0.00010959,2]
[398033224,1765317041895,-500.0,0.00010959,2]
[398033225,1765317041904,-500.0,0.00010959,2]
[398033226,1765317041913,-500.0,0.00010959,2]
[398033227,1765317041922,-527.48178574,0.00010959,2]
[398033228,1765317041932,-500.0,0.00010959,2]
[398033229,1765317041941,-500.0,0.00010959,2]
[398033230,1765317041952,-500.0,0.00010959,2]
[398033231,1765317041961,-500.0,0.00010959,2]
[398033232,1765317041971,-500.0,0.00010959,2]
[398033233,1765317041980,-500.0,0.00010959,2]
[398033234,1765317041993,-500.0,0.00010959,2]
[398033235,1765317042003,-500.0,0.00010959,2]
[398033236,1765317042012,-500.0,0.00010959,2]
[398033237,1765317042022,-500.0,0.00010959,2]
[398033238,1765317042032,-500.0,0.00010959,2]
[398033239,1765317042041,-2791.61633856,0.00010959,2]
[398033240,1765317042051,-2791.61633856,0.00010959,2]
[398033241,1765317042061,-2791.61633856,0.00010959,2]
[398033242,1765317042072,-2791.61633856,0.00010959,2]
[398033243,1765317042081,-2791.61633856,0.00010959,2]
[398033244,1765317042091,-2791.61633856,0.00010959,2]
[398033245,1765317042101,-2791.61633856,0.00010959,2]
[398033246,1765317042111,-2791.61633856,0.00010959,2]
[398033247,1765317042121,-2791.61633856,0.00010959,2]
[398033248,1765317042131,-2791.61633856,0.00010959,2]
[398033249,1765317042141,-2791.61633856,0.00010959,2]
[398033250,1765317042332,-2791.61633856,0.00010959,2]
[398033251,1765317042343,-2791.61633856,0.00010959,2]
[398033252,1765317042352,-2791.61633856,0.00010959,2]
[398033253,1765317042362,-2791.61633856,0.00010959,2]
[398033254,1765317042372,-2791.61633856,0.00010959,2]
[398033255,1765317042382,-2791.61633856,0.00010959,2]
[398033256,1765317042391,-2791.61633856,0.00010959,2]
[398033257,1765317042401,-2791.61633856,0.00010959,2]
[398033258,1765317042414,-2791.61633856,0.00010959,2]
[398033259,1765317042425,-2791.61633856,0.00010959,2]
[398033260,1765317042436,-2791.61633856,0.00010959,2]
[398033261,1765317042446,-2791.61633856,0.00010959,2]
[398033262,1765317042455,-2791.61633856,0.00010959,2]
[398033263,1765317042464,-2791.61633856,0.00010959,2]
[398033264,1765317042475,-2791.61633856,0.00010959,2]
[398033265,1765317042488,-2791.61633856,0.00010959,2]
[398033266,1765317042497,-2791.61633856,0.00010959,2]
[398033267,1765317042508,-2791.61633856,0.00010959,2]
[398033268,1765317042518,-3209.32593009,0.00010959,2]
[398033269,1765317042528,-3209.32593009,0.00010959,2]
[398033270,1765317042547,-3209.32593009,0.00010959,2]
[398033271,1765317042567,-3209.32593009,0.00010959,2]
[398033272,1765317042586,-3209.32593009,0.00010959,2]
[398033273,1765317042595,-3209.32593009,0.00010959,2]
[398033274,1765317042605,-3209.32593009,0.00010959,2]
[398033275,1765317042615,-3209.32593009,0.00010959,2]
[398033276,1765317042624,-3209.32593009,0.00010959,2]
[398033277,1765317042634,-3209.32593009,0.00010959,2]
[398033278,1765317042643,-3209.32593009,0.00010959,2]
[398033279,1765317042653,-3209.32593009,0.00010959,2]
[398033280,1765317042662,-712.62644912,0.00010959,2]
[398033281,1765317042672,-712.62644912,0.00010959,2]
[398033282,1765317042682,-712.62644912,0.00010959,2]
[398033283,1765317042691,-712.62644912,0.00010959,2]
[398033284,1765317042700,-712.62644912,0.00010959,2]
[398033285,1765317042710,-712.62644912,0.00010959,2]
[398033286,1765317042719,-712.62644912,0.00010959,2]
[398033287,1765317042729,-712.62644912,0.00010959,2]
[398033288,1765317042740,-712.62644912,0.00010959,2]
[398033289,1765317042750,-712.62644912,0.00010959,2]
[398033290,1765317042760,-712.62644912,0.00010959,2]
[398033291,1765317042770,-712.62644912,0.00010959,2]
[398033292,1765317042780,-712.62644912,0.00010959,2]
[398033293,1765317042790,-712.62644912,0.00010959,2]
[398033294,1765317042799,-712.62644912,0.00010959,2]
[398033295,1765317042808,-712.62644912,0.00010959,2]
[398033297,1765317042818,-712.62644912,0.00010959,2]
[398033298,1765317042827,-712.62644912,0.00010959,2]
[398033299,1765317042837,-712.62644912,0.00010959,2]
[398033300,1765317042846,-726.87897811,0.00010959,2]
[398033301,1765317042856,-726.87897811,0.00010959,2]
[398033302,1765317042865,-726.87897811,0.00010959,2]
[398033303,1765317042874,-726.87897811,0.00010959,2]
[398033304,1765317042884,-726.87897811,0.00010959,2]
[398033305,1765317042893,-726.87897811,0.00010959,2]
[398033306,1765317042902,-726.87897811,0.00010959,2]
[398033307,1765317042912,-726.87897811,0.00010959,2]
[398033308,1765317042921,-2000.0,0.00011,2]
[398033309,1765317042931,-151.0,0.00011,2]
[398033310,1765317042940,-151.0,0.00011,2]
[398033311,1765317042950,-151.0,0.00011,2]
[398033312,1765317042959,-151.0,0.00011,2]
[398033313,1765317042968,-151.0,0.00011,2]
[398033314,1765317042978,-320.54224919,0.00011013,2]
[398033315,1765317042989,-956.7179,0.00011027,2]
[398033316,1765317042999,-500.0,0.00011043,2]
[398033317,1765317043008,-546.0,0.00011043,2]
[398033318,1765317043017,-506.26774955,0.00011043,2]
[398033319,1765317043027,-151.0,0.00011043,2]
[398033320,1765317043036,-500.0,0.00011043,2]
[398033321,1765317043046,-151.0,0.00011043,2]
[398033322,1765317043056,-254.08447662,0.00011043,2]
[398033323,1765317043066,-500.0,0.00011043,2]
[398033324,1765317043075,-500.0,0.00011043,2]
[398033325,1765317043085,-500.0,0.00011043,2]
[398033326,1765317043095,-151.0,0.00011096,2]
[398033327,1765317043104,-151.0,0.000111,2]
[398033328,1765317043114,-151.0,0.000111,2]
[398033329,1765317043123,-500.0,0.00011115,2]
[398033330,1765317043132,-494.1393581,0.0001118,2]
[398033331,1765317043142,-546.0,0.0001118,2]
[398033332,1765317043152,-160.31543182,0.0001118,2]
[398033333,1765317043163,-500.0,0.0001118,2]
[398033334,1765317043175,-181.6890309,0.0001118,2]
[398033335,1765317043186,-392.308308,0.0001118,2]
[398033336,1765317043196,-500.0,0.0001118,2]
[398033338,1765317043206,-500.0,0.0001118,2]
[398033340,1765317043216,-151.0,0.000112,2]
[398033342,1765317043226,-366.33399907,0.00011289,2]
[398033344,1765317043236,-7693.69868048,0.00011299,2]
[398033345,1765317043246,-151.0,0.000113,2]
[398033346,1765317043258,-151.0,0.000113,2]
[398033348,1765317043267,-151.0,0.000113,2]
[398033349,1765317043277,-307.73461162,0.00011315,2]
[398033350,1765317043287,-546.0,0.00011317,2]
[398033351,1765317043297,-233.63922505,0.00011317,2]
[398033352,1765317043306,-500.0,0.00011317,2]
[398033353,1765317043316,-500.0,0.00011317,2]
[398033354,1765317043325,-500.0,0.00011389,2]
[398033356,1765317043335,-151.0,0.000114,2]
[398033357,1765317043344,-151.0,0.000114,2]
[398033358,1765317043354,-151.0,0.000114,2]
[398033359,1765317043363,-151.0,0.000114,2]
[398033360,1765317043372,-546.0,0.00011454,2]
[398033362,1765317043383,-500.0,0.00011454,2]
[398033363,1765317043392,-500.0,0.00011454,2]
[398033365,1765317043402,-151.0,0.000115,2]
[398033367,1765317043411,-151.0,0.000115,2]
[398033368,1765317043421,-6360.0030386,0.000115,2]
[398033369,1765317043430,-165.325733,0.00011507,2]
[398033370,1765317043440,-165.325733,0.00011507,2]
[398033371,1765317043450,-165.325733,0.00011507,2]
[398033372,1765317043460,-165.325733,0.00011507,2]
[398033373,1765317043469,-165.325733,0.00011507,2]
[398033374,1765317043478,-165.325733,0.00011507,2]
[398033375,1765317043490,-165.325733,0.00011507,2]
[398033376,1765317043499,-11376.68346606,0.00011534,2]
[398033377,1765317043509,-533.88981491,0.00011534,2]
[398033378,1765317043519,-400.0,0.00011534,2]
[398033379,1765317043528,-2922.75254141,0.00011534,2]
[398033380,1765317043537,-2579.17784983,0.00011534,2]
[398033381,1765317043547,-546.0,0.00011591,2]
[398033382,1765317043556,-535.64593231,0.00011591,2]
[398033383,1765317043566,-500.0,0.00011591,2]
[398033384,1765317043575,-151.0,0.000116,2]
[398033385,1765317043584,-151.0,0.000116,2]
[398033386,1765317043593,-547.08375399,0.00011601,2]
[398033387,1765317043602,-604.1677629,0.00011637,2]
[398033388,1765317043611,-151.0,0.00011644,2]
[398033389,1765317043621,-1152.0,0.00011646,2]
[398033390,1765317043630,-500.0,0.00011663,2]
[398033391,1765317043640,-342.48394105,0.00011671,2]
[398033392,1765317043649,-151.0,0.000117,2]
[398033393,1765317043658,-151.0,0.000117,2]
[398033394,1765317043667,-151.0,0.000117,2]
[398033395,1765317043678,-151.0,0.000117,2]
[398033396,1765317043687,-546.0,0.00011728,2]
[398033397,1765317043697,-581.63983745,0.00011728,2]
[398033398,1765317043707,-151.0,0.000118,2]
[398033399,1765317043716,-151.0,0.000118,2]
[398033400,1765317043726,-151.0,0.000118,2]
[398033401,1765317043737,-151.0,0.000118,2]
[398033402,1765317043746,-322.91264565,0.00011828,7]
[398033403,1765317043756,-546.0,0.00011865,2]
[398033404,1765317043766,-1000.0,0.00011878,2]
[398033405,1765317043775,-151.0,0.000119,2]
[398033406,1765317043785,-151.0,0.000119,2]
[398033407,1765317043794,-500.0,0.00011937,2]
[398033408,1765317043804,-1419.1084965,0.00011953,2]
[398033409,1765317043813,-151.0,0.00012,2]
[398033410,1765317043823,-151.0,0.00012,2]
[398033411,1765317043833,-546.0,0.00012002,2]
[398033412,1765317043842,-909.95713644,0.00012039,2]
[398033413,1765317043851,-7693.69868048,0.00012065,2]
[398033414,1765317043861,-553.64373807,0.00012082,2]
[398033415,1765317043871,-400.0,0.00012082,2]
[398033416,1765317043880,-2674.60743027,0.00012082,2]
[398033417,1765317043890,-151.0,0.000121,2]
[398033418,1765317043900,-151.0,0.000121,2]
[398033419,1765317043909,-151.0,0.000121,2]
[398033420,1765317043919,-151.0,0.000121,2]
[398033421,1765317043929,-546.0,0.00012139,2]
[398033422,1765317043938,-151.0,0.00012192,2]
[398033423,1765317043948,-482.23823844,0.00012193,7]
[398033424,1765317043958,-151.0,0.000122,2]
[398033425,1765317043967,-151.0,0.000122,2]
[398033426,1765317043977,-500.0,0.00012211,2]
[398033427,1765317043988,-10000.0,0.00012229,2]
[398033428,1765317043998,-1065.9380299,0.0001224,2]
[398033429,1765317044008,-546.0,0.00012276,2]
[398033430,1765317044017,-151.0,0.000123,2]
[398033431,1765317044027,-151.0,0.000123,2]
[398033432,1765317044037,-151.0,0.000123,2]
[398033433,1765317044047,-151.0,0.000123,2]
[398033434,1765317044056,-865.54,0.00012329,2]